bitfinex-derivatives/quotes_BNBF0:USTF0_20250101
["timestamp","ask_amount","ask_price","bid_price","bid_amount"]
[1735703101616,1.05405819,706.64,705.82,1.06261399]
[1735703101814,0.26067911,706.63,705.82,1.06261399]
[1735703102722,0.26067911,706.63,705.81,1.06261399]
[1735703103521,1.05405819,706.64,705.81,1.06261399]
[1735703104116,1.05405819,706.63,705.8,1.06261399]
[1735703105417,1.05405819,706.66,705.68,1.06261399]
[1735703105623,0.26070166,706.65,705.68,1.06261399]
[1735703106122,1.05405819,706.66,705.68,1.06261399]
[1735703106525,1.05405819,706.67,705.68,1.06261399]
[1735703106721,0.26069739,706.66,705.68,1.06261399]
[1735703107326,1.05405819,706.67,705.68,1.06261399]
[1735703107726,1.47843943,706.76,705.68,1.06261399]
[1735703107727,1.05405819,706.68,705.68,1.06261399]
[1735703108829,1.47841325,706.83,705.73,1.06261399]
[1735703108830,1.05405819,706.77,705.73,1.06261399]
[1735703109029,0.26066207,706.76,705.73,1.06261399]
[1735703109226,1.05405819,706.77,705.73,1.06261399]
[1735703109827,0.26065335,706.76,705.73,1.06261399]
[1735703110027,1.05405819,706.83,705.81,1.06261399]
[1735703110227,0.26064364,706.82,705.81,1.06261399]
[1735703110826,1.05405819,706.81,705.78,1.06261399]
[1735703111032,0.26064364,706.8,705.78,1.06261399]
[1735703112433,0.26064364,706.8,705.82,1.06261399]
[1735703112633,0.26064953,706.79,705.82,1.06261399]
[1735703112834,0.26064953,706.78,705.82,1.06261399]
[1735703113034,0.26064953,706.77,705.82,1.06261399]
[1735703113230,0.26064953,706.76,705.82,1.06261399]
[1735703113535,0.26064953,706.75,705.78,1.06261399]
[1735703113737,0.26064953,706.74,705.78,1.06261399]
[1735703113936,0.26064953,706.73,705.78,1.06261399]
[1735703114134,0.26064953,706.72,705.78,1.06261399]
[1735703114330,1.05405819,706.76,705.81,1.06261399]
[1735703115433,1.05405819,706.76,705.54,0.71506682]
[1735703115434,0.28293745,706.87,705.88,1.06261399]
[1735703116538,0.28293745,706.87,705.86,1.06261399]
[1735703117639,0.28293745,706.87,705.85,1.06261399]
[1735703118636,0.28293745,706.87,705.54,0.71506682]
[1735703118637,0.28293745,706.87,705.83,1.06261399]
[1735703119636,0.28293745,706.87,705.54,0.71506682]
[1735703119637,0.28293745,706.87,705.81,1.06261399]
[1735703120638,0.28293745,706.87,705.75,1.06261399]
[1735703121939,0.28293745,706.87,705.71,1.06261399]
[1735703123145,0.28293745,706.87,705.67,1.06261399]
[1735703124643,0.28293745,706.87,705.65,1.06261399]
[1735703124843,0.28293745,706.87,705.66,0.28342261]
[1735703131144,0.28293745,706.87,705.66,1.3460366]
[1735703132447,0.28293745,706.87,705.72,1.06261399]
[1735703133249,0.28293745,706.87,705.73,0.28339449]
[1735703133952,1.47788481,707.14,705.73,0.28339449]
[1735703134151,0.26055918,707.13,705.73,0.28339449]
[1735703135251,0.26055918,707.13,705.73,1.34600848]
[1735703136348,0.26055918,707.13,705.73,0.28339449]
[1735703136647,1.47788481,707.14,705.73,0.28339449]
[1735703136845,0.26054726,707.13,705.73,0.28339449]
[1735703137451,0.26054726,707.13,705.77,1.06261399]
[1735703138049,0.26054726,707.13,705.78,0.28337442]
[1735703138850,0.26054726,707.13,705.78,1.34598841]
[1735703139252,1.47788481,707.14,705.78,1.34598841]
[1735703139552,0.26055865,707.13,705.78,1.34598841]
[1735703140052,1.47788481,707.14,705.81,1.06261399]
[1735703140251,0.26055641,707.13,705.81,1.06261399]
[1735703141349,0.26055641,707.13,705.85,1.06261399]
[1735703142153,0.26054948,707.12,705.88,1.06261399]
[1735703142350,0.26054948,707.11,705.88,1.06261399]
[1735703142550,0.26054948,707.1,705.88,1.06261399]
[1735703142755,0.26054948,707.09,705.88,1.06261399]
[1735703142954,0.26054948,707.08,705.88,1.06261399]
[1735703143255,0.26054948,707.07,705.88,1.06261399]
[1735703143554,0.26054948,707.06,705.88,1.06261399]
[1735703143751,0.26054948,707.05,705.93,1.06261399]
[1735703143950,0.26054948,707.04,705.93,1.06261399]
[1735703144156,1.47788481,707.14,705.93,1.06261399]
[1735703144350,0.2605428,707.13,705.93,1.06261399]
[1735703144756,0.26054136,707.12,705.93,1.06261399]
[1735703144956,0.26054136,707.11,705.94,1.06261399]
[1735703145156,0.26054136,707.1,705.94,1.06261399]
[1735703145357,0.26054136,707.09,705.94,1.06261399]
[1735703145550,0.26054136,707.08,705.94,1.06261399]
[1735703145755,1.47764949,707.2,705.94,1.06261399]
[1735703145756,0.26054136,707.07,705.94,1.06261399]
[1735703145951,1.47764949,707.2,705.94,1.06261399]
[1735703146154,0.2605354,707.19,706.01,1.06261399]
[1735703147257,1.47764949,707.2,706.01,1.06261399]
[1735703147457,0.2605284,707.19,706.02,1.06261399]
[1735703148057,1.47764949,707.2,706.02,1.06261399]
[1735703148252,0.26053307,707.19,706.02,1.06261399]
[1735703148657,0.26053307,707.19,706.04,1.06261399]
[1735703149863,1.31459126,707.19,706.07,1.06261399]
[1735703150062,1.05405819,707.19,706.07,1.06261399]
[1735703150262,0.26052211,707.18,706.07,1.06261399]
[1735703151058,1.3145803,707.18,706.1,1.06261399]
[1735703151261,0.26052211,707.17,706.1,1.06261399]
[1735703152060,1.05405819,707.17,706.1,1.06261399]
[1735703153359,1.47749788,707.26,705.81,0.28336237]
[1735703153360,1.47749788,707.26,706.06,1.06261399]
[1735703154159,1.05405819,707.32,706.06,1.06261399]
[1735703154363,1.73790151,707.31,706.07,1.06261399]
[1735703154564,0.26049249,707.3,706.07,1.06261399]
[1735703155466,0.26049249,707.3,705.81,0.28336237]
[1735703155467,0.26049249,707.3,706.08,1.06261399]
[1735703156368,0.26049586,707.29,706.08,1.06261399]
[1735703156569,0.26049586,707.28,706.08,1.06261399]
[1735703156765,0.26049586,707.27,706.08,1.06261399]
[1735703156966,1.47740902,707.31,706.08,1.06261399]
[1735703157162,0.26049619,707.3,706.08,1.06261399]
[1735703157569,0.26049619,707.3,706.07,1.06261399]
[1735703158163,1.47740902,707.31,706.07,1.06261399]
[1735703158369,0.2604931,707.3,706.07,1.06261399]
[1735703159966,0.2604931,707.3,706.06,1.06261399]
[1735703160870,0.26049241,707.29,706.06,1.06261399]
[1735703161071,0.26049241,707.28,706.08,1.06261399]
[1735703161270,0.26049241,707.27,706.08,1.06261399]
[1735703161470,0.26049241,707.26,706.08,1.06261399]
[1735703161674,1.47740902,707.31,706.08,1.06261399]
[1735703161972,0.26050117,707.3,706.03,1.06261399]
[1735703163067,1.05405819,707.28,706.12,1.06261399]
[1735703163372,0.26050117,707.27,706.12,1.06261399]
[1735703165475,0.26050227,707.26,706.1,1.06261399]
[1735703165676,0.26050227,707.25,706.1,1.06261399]
[1735703165872,0.26050227,707.24,706.1,1.06261399]
[1735703166073,0.26050227,707.23,706.1,1.06261399]
[1735703166269,0.26050227,707.22,706.1,1.06261399]
[1735703166473,0.26050227,707.21,706.11,1.06261399]
[1735703166676,0.26050227,707.2,706.11,1.06261399]
[1735703166975,0.26050227,707.19,706.11,1.06261399]
[1735703167176,0.26050227,707.18,706.11,1.06261399]
[1735703167477,0.26050227,707.17,706.11,1.06261399]
[1735703167778,0.26050227,707.16,706.07,1.06261399]
[1735703167971,0.26050227,707.15,706.07,1.06261399]
[1735703168176,0.26050227,707.14,706.07,1.06261399]
[1735703168476,0.26050227,707.13,706.07,1.06261399]
[1735703168676,1.47740902,707.31,705.84,0.71370236]
[1735703168677,0.26050227,707.12,706.09,1.06261399]
[1735703168878,0.26050227,707.11,706.09,1.06261399]
[1735703169176,0.26050227,707.1,706.09,1.06261399]
[1735703169373,0.26050227,707.09,706.09,1.06261399]
[1735703169676,0.26050227,707.08,706.11,1.06261399]
[1735703169871,0.26050227,707.07,706.11,1.06261399]
[1735703170076,0.26050227,707.06,706.11,1.06261399]
[1735703170276,0.26050227,707.05,706.11,1.06261399]
[1735703170473,0.26050227,707.04,706.11,1.06261399]
[1735703170672,1.05405819,707.18,706.14,1.06261399]
[1735703170874,0.26052221,707.17,706.14,1.06261399]
[1735703171570,0.26052722,707.16,706.14,1.06261399]
[1735703171775,1.05405819,707.14,706.13,1.06261399]
[1735703171971,0.26052722,707.13,706.13,1.06261399]
[1735703172877,0.26052722,707.13,706.15,1.06261399]
[1735703173975,1.31458541,707.13,706.15,1.06261399]
[1735703174272,0.26052722,707.12,706.15,1.06261399]
[1735703175176,0.26052722,707.12,705.86,0.71370236]
[1735703175177,0.26052722,707.12,706.18,1.06261399]
[1735703175374,0.26052722,707.11,706.18,1.06261399]
[1735703175580,0.26052722,707.1,706.18,1.06261399]
[1735703175873,0.26052722,707.09,706.18,1.06261399]
[1735703176178,0.26052722,707.08,706.19,1.06261399]
[1735703176373,0.26052722,707.07,706.19,1.06261399]
[1735703176574,0.26052722,707.06,706.19,1.06261399]
[1735703176774,0.26052722,707.05,706.19,1.06261399]
[1735703176974,0.26052722,707.04,706.19,1.06261399]
[1735703177181,0.26052722,707.03,706.19,1.06261399]
[1735703177481,0.26052722,707.02,706.2,1.06261399]
[1735703177679,1.05405819,707.12,706.2,1.06261399]
[1735703177880,0.26052426,707.11,706.2,1.06261399]
[1735703178481,1.05405819,707.1,706.19,1.06261399]
[1735703178681,0.26052426,707.09,706.19,1.06261399]
[1735703178884,0.26052425,707.08,706.19,1.06261399]
[1735703179175,0.26052425,707.07,706.19,1.06261399]
[1735703179383,0.26052425,707.06,706.2,1.06261399]
[1735703179576,0.26052425,707.08,706.2,1.06261399]
[1735703179781,0.26052425,707.07,706.2,1.06261399]
[1735703179983,0.26052425,707.06,706.2,1.06261399]
[1735703180182,0.26052425,707.05,706.2,1.06261399]
[1735703180378,0.26052425,707.04,706.2,1.06261399]
[1735703180677,0.26052425,707.03,706.2,1.06261399]
[1735703180882,0.26052425,707.02,706.2,1.06261399]
[1735703181081,1.05405819,707.08,706.2,1.06261399]
[1735703181381,0.26052425,707.07,706.2,1.06261399]
[1735703181584,0.26052734,707.06,706.2,1.06261399]
[1735703181784,0.26052734,707.05,706.21,1.06261399]
[1735703182083,0.26052734,707.04,706.21,1.06261399]
[1735703182283,0.26052734,707.03,706.21,1.06261399]
[1735703182584,1.05405819,707.08,706.21,1.06261399]
[1735703182783,0.26052498,707.07,706.21,1.06261399]
[1735703184084,0.26052498,707.07,706.18,1.06261399]
[1735703184285,0.26052852,707.06,706.18,1.06261399]
[1735703184480,0.26052852,707.05,706.18,1.06261399]
[1735703184685,0.26052852,707.04,706.18,1.06261399]
[1735703184886,1.05405819,707.09,706.18,1.06261399]
[1735703185086,0.26052782,707.08,706.18,1.06261399]
[1735703186886,1.05405819,707.09,706.18,1.06261399]
[1735703187086,0.26052649,707.08,706.18,1.06261399]
[1735703187781,0.26052649,707.07,706.18,1.06261399]
[1735703187986,0.26052649,707.06,706.18,1.06261399]
[1735703188287,1.05405819,707.09,706.18,1.06261399]
[1735703188487,0.26051223,707.08,706.18,1.06261399]
[1735703189788,0.26051543,707.07,706.21,1.06261399]
[1735703189988,1.05405819,707.11,706.21,1.06261399]
[1735703190186,0.26051785,707.1,706.21,1.06261399]
[1735703191690,1.31457604,707.1,706.21,1.06261399]
[1735703191889,0.26051785,707.09,706.21,1.06261399]
[1735703192290,1.05405819,707.1,706.21,1.06261399]
[1735703192492,0.26051871,707.09,706.22,1.06261399]
[1735703193786,1.05405819,707.07,706.24,1.06261399]
[1735703194091,0.26051521,707.06,706.24,1.06261399]
[1735703194790,0.26051521,707.06,706.25,1.06261399]
[1735703195793,0.26052631,707.05,706.25,1.06261399]
[1735703195993,0.26052631,707.05,705.88,0.71370236]
[1735703195994,0.26052631,707.04,706.24,1.06261399]
[1735703197193,1.3145845,707.04,706.24,1.06261399]
[1735703197393,0.26052631,707.03,706.24,1.06261399]
[1735703198501,0.26052631,707.03,706.23,1.06261399]
[1735703198502,1.3145845,707.03,706.23,1.06261399]
[1735703198695,0.26052631,707.02,706.23,1.06261399]
[1735703199699,1.05405819,707.02,706.23,1.06261399]
[1735703200603,1.05405819,707.05,706.22,1.06261399]
[1735703201602,1.05405819,707.05,706.23,1.06261399]
[1735703202803,1.05405819,707.04,706.23,1.06261399]
[1735703203499,1.05405819,707.05,706.25,1.06261399]
[1735703205498,1.05405819,707.06,706.24,1.06261399]
[1735703207002,0.69627068,707.3,706.22,1.06261399]
[1735703207003,1.05405819,707.05,706.22,1.06261399]
[1735703208098,0.69627068,707.3,706.01,1.06261399]
[1735703208099,1.05405819,707.23,706.01,1.06261399]
[1735703209406,1.05405819,707.24,706.02,1.06261399]
[1735703211007,1.05405819,707.22,706.02,1.06261399]
[1735703212905,1.05405819,707.23,706.03,1.06261399]
[1735703213808,1.05405819,707.24,706.02,1.06261399]
[1735703214711,1.05405819,707.24,706.03,1.06261399]
[1735703215612,1.05405819,707.24,706.02,1.06261399]
[1735703216210,0.26052864,707.23,706.02,1.06261399]
[1735703216807,0.26052864,707.22,706.02,1.06261399]
[1735703217007,1.05405819,707.12,706.14,1.06261399]
[1735703219219,1.05405819,707.11,706.13,1.06261399]
[1735703220415,1.05405819,707.12,706.11,1.06261399]
[1735703221611,1.76017046,707.31,706.11,1.06261399]
[1735703221612,1.05405819,707.13,706.11,1.06261399]
[1735703222616,1.05405819,707.14,706.12,1.06261399]
[1735703223615,1.05405819,707.13,706.13,1.06261399]
[1735703224513,0.26052873,707.12,706.13,1.06261399]
[1735703225819,1.05405819,707.05,706.21,1.06261399]
[1735703227119,1.05405819,707.05,706.01,1.06261399]
[1735703227120,1.05405819,707.05,706.22,1.06261399]
[1735703228420,0.2605336,707.04,706.22,1.06261399]
[1735703228618,1.05405819,707.05,706.22,1.06261399]
[1735703229018,1.05405819,707.05,705.88,0.71545777]
[1735703229019,1.05405819,707.03,706.21,1.06261399]
[1735703229218,0.26052993,707.02,706.21,1.06261399]
[1735703230121,1.05405819,707.0,706.25,1.06261399]
[1735703231431,1.05405819,706.99,706.25,1.06261399]
[1735703232323,1.05405819,707.0,706.26,1.06261399]
[1735703232529,0.26053577,706.99,706.26,1.06261399]
[1735703233322,1.31459396,706.99,706.24,1.06261399]
[1735703233530,1.05405819,706.99,706.24,1.06261399]
[1735703234729,1.05405819,706.99,706.25,1.06261399]
[1735703237831,1.05405819,707.26,706.15,1.06261399]
[1735703238730,1.05405819,707.27,706.13,1.06261399]
[1735703239831,1.05405819,707.28,706.1,1.06261399]
[1735703240032,0.26052048,707.27,706.1,1.06261399]
[1735703241031,1.05405819,707.09,706.19,1.06261399]
[1735703241833,1.05405819,707.11,706.19,1.06261399]
[1735703242031,0.2605172,707.1,706.21,1.06261399]
[1735703242833,1.05405819,707.11,706.21,1.06261399]
[1735703243133,0.2605172,707.1,706.21,1.06261399]
[1735703243733,1.05405819,707.11,706.21,1.06261399]
[1735703244334,1.05405819,707.17,706.15,1.06261399]
[1735703246540,1.05405819,707.19,706.17,1.06261399]
[1735703247639,2.15203547,707.89,705.88,0.71516243]
[1735703247640,1.05405819,707.22,706.19,1.06261399]
[1735703247840,0.26050309,707.21,706.19,1.06261399]
[1735703248240,0.26050309,707.2,706.19,1.06261399]
[1735703248439,1.05405819,707.22,706.19,1.06261399]
[1735703248740,0.26050247,707.21,706.19,1.06261399]
[1735703248943,1.31456066,707.21,706.19,1.06261399]
[1735703249133,0.26050247,707.2,706.19,1.06261399]
[1735703250035,0.26050247,707.2,706.12,1.06261399]
[1735703250036,1.05405819,707.13,706.12,1.06261399]
[1735703250240,0.26050247,707.12,706.12,1.06261399]
[1735703250838,0.26058751,707.11,706.12,1.06261399]
[1735703251036,0.26058751,707.1,706.12,1.06261399]
[1735703251234,0.26058751,707.09,706.12,1.06261399]
[1735703251439,1.05405819,707.02,705.93,1.06261399]
[1735703251641,0.26059475,707.01,705.93,1.06261399]
[1735703252639,0.26059475,707.01,705.88,1.06261399]
[1735703253040,0.26059475,707.0,705.88,1.06261399]
[1735703253240,1.05405819,707.03,705.88,1.06261399]
[1735703253439,0.26059081,707.02,705.88,1.06261399]
[1735703254047,0.26059081,707.02,705.87,0.28333829]
[1735703254241,0.26059081,707.01,705.87,0.28333829]
[1735703254442,0.26059081,707.0,705.87,0.28333829]
[1735703254646,1.05405819,707.08,705.87,0.28333829]
[1735703254846,0.26059098,707.07,705.87,0.28333829]
[1735703255548,0.26059098,707.06,705.87,0.28333829]
[1735703255849,1.05405819,707.11,705.87,0.28333829]
[1735703255850,0.26059098,707.05,705.87,0.28333829]
[1735703256148,0.26059098,707.04,705.87,0.28333829]
[1735703256342,1.05405819,707.11,705.87,0.28333829]
[1735703256546,0.26057326,707.1,705.87,0.28333829]
[1735703256845,0.26057326,707.09,705.87,0.28333829]
[1735703257048,0.26057326,707.08,705.87,0.28333829]
[1735703257348,0.26057326,707.07,705.87,0.28333829]
[1735703257549,0.26057326,707.06,705.87,0.28333829]
[1735703257743,0.26057326,707.05,705.87,0.28333829]
[1735703257946,0.26057326,707.04,705.87,0.28333829]
[1735703258146,1.05405819,707.17,705.87,0.28333829]
[1735703258346,0.26057619,707.16,705.87,0.28333829]
[1735703258749,1.05405819,707.17,705.87,0.28333829]
[1735703258948,0.26058264,707.16,705.87,0.28333829]
[1735703259350,0.26058264,707.15,705.87,0.28333829]
[1735703259550,0.26058072,707.14,705.87,0.28333829]
[1735703259751,0.26058072,707.13,705.87,0.28333829]
[1735703259946,0.26058072,707.12,705.87,0.28333829]
[1735703260145,0.26058072,707.11,705.87,0.28333829]
[1735703260349,0.26058072,707.1,705.87,0.28333829]
[1735703260650,0.26058072,707.09,705.87,0.28333829]
[1735703260847,0.26058072,707.08,705.87,0.28333829]
[1735703261150,0.26058072,707.07,705.87,0.28333829]
[1735703261353,0.26058072,707.06,705.87,0.28333829]
[1735703261652,0.26058227,707.05,705.87,0.28333829]
[1735703261851,0.26058227,707.04,705.87,0.28333829]
[1735703262053,0.26058227,707.03,705.87,0.28333829]
[1735703262251,0.26058227,707.02,705.87,0.28333829]
[1735703262449,0.26058227,707.01,705.87,0.28333829]
[1735703262650,0.26058227,707.0,705.87,0.28333829]
[1735703262850,0.26058227,706.99,705.87,0.28333829]
[1735703263050,0.26058227,706.98,705.87,0.28333829]
[1735703263250,0.26058227,706.97,705.87,0.28333829]
[1735703263447,0.26058227,706.96,705.87,0.28333829]
[1735703263653,0.26058227,706.95,705.87,0.28333829]
[1735703263951,0.26058227,706.94,705.87,0.28333829]
[1735703264143,1.47785866,707.05,705.87,0.28333829]
[1735703264350,0.26063961,707.04,705.87,0.28333829]
[1735703264649,1.3146978,707.04,705.87,0.28333829]
[1735703264855,0.26063961,707.03,705.87,0.28333829]
[1735703265048,0.26063961,707.03,705.78,1.06261399]
[1735703266254,1.3146978,707.03,705.4,1.06261399]
[1735703266455,0.26063961,707.02,705.41,0.28352305]
[1735703266658,1.05405819,707.03,705.41,0.28352305]
[1735703266856,0.26069297,707.02,705.41,0.28352305]
[1735703267758,0.26069297,707.01,705.41,0.28352305]
[1735703268057,0.26069297,707.0,705.41,0.28352305]
[1735703268250,0.26069297,706.99,705.41,0.28352305]
[1735703268452,0.26069297,706.98,705.41,0.28352305]
[1735703268657,0.26069297,706.97,705.41,0.28352305]
[1735703268856,0.26069297,706.96,705.41,0.28352305]
[1735703269058,0.26069297,706.95,705.41,0.28352305]
[1735703269258,0.26069297,706.94,705.41,0.28352305]
[1735703269459,0.26072226,706.93,705.41,0.28352305]
[1735703269757,0.26072226,706.92,705.41,0.28352305]
[1735703269957,0.26072226,706.91,705.41,0.28352305]
[1735703270157,0.26072226,706.9,705.41,0.28352305]
[1735703270351,0.26072226,706.89,705.41,0.28352305]
[1735703270556,0.26072226,706.88,705.41,0.28352305]
[1735703270755,0.26072226,706.87,705.41,0.28352305]
[1735703270958,0.26073678,706.86,705.41,0.28352305]
[1735703271258,0.26073678,706.85,705.41,0.28352305]
[1735703271457,0.26073678,706.84,705.41,0.28352305]
[1735703271658,0.26073678,706.83,705.41,0.28352305]
[1735703271858,0.26075437,706.82,705.41,0.28352305]
[1735703272052,0.2607557,706.81,705.41,0.28352305]
[1735703272253,0.2607557,706.8,705.41,0.28352305]
[1735703272456,0.2607557,706.79,705.41,0.28352305]
[1735703274553,1.47869594,706.8,705.41,0.28352305]
[1735703274760,0.26075676,706.79,705.41,0.28352305]
[1735703277462,0.26074595,706.78,705.41,0.28352305]
[1735703277761,0.26074595,706.77,705.41,0.28352305]
[1735703277955,0.26074595,706.79,705.41,0.28352305]
[1735703278158,0.26074595,706.78,705.41,0.28352305]
[1735703278455,0.26074595,706.77,705.41,0.28352305]
[1735703278661,0.26074595,706.76,705.41,0.28352305]
[1735703278858,0.26074595,706.75,705.41,0.28352305]
[1735703279059,1.47869594,706.8,705.41,0.28352305]
[1735703279060,0.26074595,706.74,705.41,0.28352305]
[1735703279258,0.26074595,706.73,705.41,0.28352305]
[1735703279457,0.26074595,706.72,705.41,0.28352305]
[1735703279760,0.26074595,706.71,705.41,0.28352305]
[1735703279957,1.47869594,706.8,705.41,0.28352305]
[1735703280162,0.26073859,706.79,705.41,0.28352305]
[1735703281760,0.26072866,706.78,705.41,0.28352305]
[1735703282059,0.26072866,706.77,705.41,0.28352305]
[1735703282260,0.26072866,706.76,705.41,0.28352305]
[1735703282457,0.26072866,706.75,705.41,0.28352305]
[1735703282659,0.26072866,706.74,705.41,0.28352305]
[1735703282865,0.26072866,706.73,705.41,0.28352305]
[1735703283163,0.26072866,706.72,705.41,0.28352305]
[1735703283360,0.26072866,706.71,705.41,0.28352305]
[1735703283560,0.26072866,706.7,705.41,0.28352305]
[1735703283758,0.26072866,706.69,705.41,0.28352305]
[1735703283962,0.26072866,706.68,705.41,0.28352305]
[1735703284164,0.26072866,706.67,705.41,0.28352305]
[1735703284362,0.26072866,706.66,705.41,0.28352305]
[1735703284660,0.2607018,706.65,705.41,0.28352305]
[1735703284865,0.2607018,706.64,705.41,0.28352305]
[1735703285164,0.2607018,706.63,705.41,0.28352305]
[1735703285364,0.2607018,706.62,705.41,0.28352305]
[1735703285665,0.2607018,706.61,705.41,0.28352305]
[1735703285859,0.2607018,706.6,705.41,0.28352305]
[1735703286064,0.2607018,706.59,705.41,0.28352305]
[1735703286265,0.2607018,706.58,705.41,0.28352305]
[1735703286465,0.2607018,706.57,705.41,0.28352305]
[1735703286665,0.2607018,706.56,705.41,0.28352305]
[1735703286859,0.2607018,706.55,705.41,0.28352305]
[1735703287060,1.47876401,706.8,705.41,0.28352305]
[1735703287261,0.26070377,706.79,705.41,0.28352305]
[1735703295176,0.26070377,706.78,705.41,0.28352305]
[1735703295370,0.26070377,706.77,705.41,1.34613704]
[1735703295575,0.26070377,706.76,705.41,1.34613704]
[1735703295775,0.26070377,706.75,705.41,1.34613704]
[1735703295969,0.26070377,706.74,705.41,1.34613704]
[1735703296173,0.26070377,706.73,705.41,1.34613704]
[1735703296372,0.26070377,706.72,705.41,1.34613704]
[1735703296574,1.47876401,706.8,705.45,1.06261399]
[1735703296575,0.26070377,706.71,705.45,1.06261399]
[1735703296872,0.26070377,706.7,705.45,1.06261399]
[1735703297077,0.26070377,706.69,705.45,1.06261399]
[1735703297372,0.26070377,706.68,705.45,1.06261399]
[1735703297578,0.26070377,706.67,705.5,1.06261399]
[1735703297776,0.26071037,706.66,705.5,1.06261399]
[1735703297975,0.26071037,706.65,705.5,1.06261399]
[1735703298176,1.05405819,706.75,705.5,1.06261399]
[1735703298177,0.26071037,706.64,705.5,1.06261399]
[1735703298474,0.26070999,706.63,705.5,1.06261399]
[1735703298671,0.26070999,706.62,705.5,1.06261399]
[1735703298871,1.47876401,706.8,705.41,0.28352305]
[1735703298872,0.26070999,706.61,705.53,1.06261399]
[1735703299075,0.26070999,706.6,705.53,1.06261399]
[1735703299271,0.26071217,706.59,705.53,1.06261399]
[1735703299476,0.26071217,706.58,705.53,1.06261399]
[1735703299675,0.26071217,706.57,705.53,1.06261399]
[1735703299877,0.26071217,706.56,705.6,1.06261399]
[1735703300076,0.26071217,706.55,705.6,1.06261399]
[1735703300275,0.26071217,706.54,705.6,1.06261399]
[1735703300469,1.05405819,706.68,705.6,1.06261399]
[1735703300672,0.26070979,706.67,705.6,1.06261399]
[1735703301272,1.05405819,706.65,705.63,1.06261399]
[1735703301581,0.26070979,706.64,705.63,1.06261399]
[1735703302375,0.26070979,706.64,705.65,1.06261399]
[1735703303880,0.26070979,706.64,705.67,1.06261399]
[1735703304080,1.05405819,706.67,705.67,1.06261399]
[1735703304081,0.26070979,706.63,705.67,1.06261399]
[1735703304378,0.26070979,706.62,705.67,1.06261399]
[1735703304578,0.26070979,706.61,705.67,1.06261399]
[1735703304781,0.26070979,706.6,705.66,1.06261399]
[1735703304977,0.26070979,706.59,705.66,1.06261399]
[1735703305182,0.26069961,706.58,705.66,1.06261399]
[1735703305481,0.26070132,706.57,705.66,1.06261399]
[1735703305676,0.26070132,706.56,705.66,1.06261399]
[1735703305875,0.26070132,706.55,705.66,1.06261399]
[1735703306179,0.26070342,706.54,705.66,1.06261399]
[1735703306375,1.05405819,706.67,705.66,1.06261399]
[1735703306682,0.26070453,706.66,705.65,1.06261399]
[1735703307680,0.26070453,706.66,705.63,1.06261399]
[1735703307877,0.26070453,706.65,705.63,1.06261399]
[1735703308074,0.26070453,706.64,705.63,1.06261399]
[1735703308275,0.26070453,706.63,705.63,1.06261399]
[1735703308477,0.26070453,706.62,705.63,1.06261399]
[1735703308679,0.26070547,706.61,705.63,1.06261399]
[1735703308880,0.26070547,706.6,705.65,1.06261399]
[1735703309072,0.26070547,706.59,705.65,1.06261399]
[1735703309278,0.26070547,706.58,705.65,1.06261399]
[1735703309478,0.26070547,706.57,705.65,1.06261399]
[1735703309680,1.05405819,706.65,705.65,1.06261399]
[1735703309878,0.26070335,706.64,705.67,1.06261399]
[1735703310077,0.26070335,706.63,705.67,1.06261399]
[1735703310279,0.26070335,706.62,705.67,1.06261399]
[1735703310480,0.26070335,706.61,705.67,1.06261399]
[1735703310681,0.26070335,706.6,705.67,1.06261399]
[1735703310882,0.26070335,706.59,705.67,1.06261399]
[1735703311082,0.26070335,706.58,705.67,1.06261399]
[1735703311284,1.05405819,706.64,705.67,1.06261399]
[1735703311483,0.26070335,706.63,705.67,1.06261399]
[1735703312086,1.05405819,706.64,705.67,1.06261399]
[1735703312787,1.05405819,706.61,705.68,1.06261399]
[1735703313784,1.47876401,706.8,705.41,0.28352305]
[1735703313785,1.05405819,706.73,705.57,1.06261399]
[1735703313984,0.26071753,706.72,705.57,1.06261399]
[1735703314987,1.05405819,706.69,705.54,1.06261399]
[1735703316190,1.47876401,706.8,705.55,1.06261399]
[1735703316191,1.05405819,706.67,705.55,1.06261399]
[1735703316691,0.26072814,706.66,705.55,1.06261399]
[1735703317391,0.26072814,706.66,705.59,1.06261399]
[1735703317686,1.05405819,706.69,705.59,1.06261399]
[1735703317991,0.26073225,706.68,705.59,1.06261399]
[1735703318691,1.05405819,706.63,705.53,1.06261399]
[1735703319689,1.05405819,706.63,705.54,1.06261399]
[1735703321094,1.05405819,706.65,705.51,1.06261399]
[1735703322088,0.26073631,706.64,705.51,1.06261399]
[1735703322486,0.26073631,706.64,705.5,1.06261399]
[1735703323992,1.05405819,706.59,705.58,1.06261399]
[1735703325091,1.05405819,706.62,705.6,1.06261399]
[1735703325289,0.2607256,706.61,705.6,1.06261399]
[1735703326292,1.05405819,706.6,705.61,1.06261399]
[1735703326491,0.2607256,706.59,705.61,1.06261399]
[1735703327197,1.05405819,706.6,705.61,1.06261399]
[1735703327398,0.2607259,706.59,705.61,1.06261399]
[1735703327594,1.31478409,706.59,705.61,1.06261399]
[1735703327792,0.2607259,706.58,705.61,1.06261399]
[1735703328797,0.2607259,706.57,705.61,1.06261399]
[1735703328992,1.05405819,706.6,705.61,1.06261399]
[1735703329191,0.26072392,706.59,705.61,1.06261399]
[1735703330593,1.05405819,706.6,705.61,1.06261399]